bitfinex/quotes_BTCUSD_20240721
["timestamp","ask_amount","ask_price","bid_price","bid_amount"]
[1721603525188,2.27566233,68233.0,68232.0,0.16909418]
[1721603525366,2.36317003,68233.0,68232.0,0.16909418]
[1721603525507,2.27566233,68233.0,68232.0,0.16909418]
[1721603525711,2.27581367,68233.0,68232.0,0.16909418]
[1721603525914,2.27581435,68233.0,68232.0,0.16909418]
[1721603526514,2.72322735,68233.0,68232.0,0.15309418]
[1721603526715,2.8326123,68233.0,68232.0,0.08967757]
[1721603527161,2.72322735,68233.0,68232.0,0.02044372]
[1721603527370,2.56892735,68233.0,68232.0,0.02044372]
[1721603528103,2.72322735,68233.0,68232.0,0.02044372]
[1721603528868,2.7233538,68233.0,68232.0,0.02044372]
[1721603529246,2.7233538,68233.0,68208.0,0.002794]
[1721603529247,0.09205959,68209.0,68208.0,0.002794]
[1721603529422,1.2883355,68209.0,68208.0,0.002794]
[1721603530472,1.2893355,68209.0,68208.0,0.002794]
[1721603530671,0.73305,68208.0,68207.0,0.0758]
[1721603530909,0.9451295,68208.0,68207.0,0.0758]
[1721603531116,1.2883495,68208.0,68207.0,0.0758]
[1721603533075,1.2893495,68208.0,68207.0,0.0758]
[1721603536233,0.23867759,68204.0,68203.0,0.0792]
[1721603536439,0.9951715,68204.0,68203.0,0.0792]
[1721603536637,1.2884085,68204.0,68203.0,0.0792]
[1721603536869,0.82517459,68202.0,68201.0,0.0611]
[1721603537042,1.2884405,68202.0,68201.0,0.0611]
[1721603537411,1.24638091,68202.0,68201.0,0.0611]
[1721603537783,0.9951945,68202.0,68201.0,0.0611]
[1721603540016,0.074,68202.0,68201.0,0.1368]
[1721603540142,0.074,68202.0,68201.0,0.43005]
[1721603540143,0.051,68202.0,68201.0,0.43005]
[1721603540350,0.001,68202.0,68201.0,0.43005]
[1721603540549,0.051,68202.0,68201.0,0.43005]
[1721603540940,0.09305959,68202.0,68201.0,0.43005]
[1721603542105,0.001,68202.0,68201.0,0.43005]
[1721603542527,0.001,68202.0,68201.0,0.869925]
[1721603543081,0.04305959,68202.0,68201.0,0.869925]
[1721603543271,0.001,68202.0,68201.0,0.869925]
[1721603544229,0.002,68202.0,68201.0,0.869925]
[1721603544668,0.001,68202.0,68201.0,0.869925]
[1721603544869,0.051,68202.0,68201.0,0.43005]
[1721603545045,0.09405959,68202.0,68201.0,0.43005]
[1721603545252,0.051,68202.0,68201.0,0.43005]
[1721603545469,0.052,68202.0,68201.0,0.43005]
[1721603545668,0.05,68202.0,68201.0,0.43005]
[1721603546228,0.051,68202.0,68201.0,0.43005]
[1721603546355,0.05,68202.0,68201.0,0.43005]
[1721603546560,0.051,68202.0,68201.0,0.43005]
[1721603547336,0.052,68202.0,68201.0,0.43005]
[1721603547687,0.051,68202.0,68201.0,0.43005]
[1721603548224,0.052,68202.0,68201.0,0.43005]
[1721603548638,0.052,68202.0,68201.0,0.576675]
[1721603549535,0.052,68202.0,68201.0,0.43005]
[1721603550937,0.051,68202.0,68201.0,0.43005]
[1721603551173,0.052,68202.0,68201.0,0.43005]
[1721603551714,0.05,68202.0,68201.0,0.43005]
[1721603551950,0.051,68202.0,68201.0,0.43005]
[1721603552063,0.051,68202.0,68201.0,0.576675]
[1721603552268,0.052,68202.0,68201.0,0.576675]
[1721603552685,0.052,68202.0,68201.0,0.43005]
[1721603553817,0.052,68202.0,68201.0,0.576675]
[1721603556173,0.002,68202.0,68201.0,0.576675]
[1721603556599,0.052,68202.0,68201.0,0.576675]
[1721603558106,0.002,68202.0,68201.0,0.576675]
[1721603558326,0.002,68202.0,68201.0,0.869925]
[1721603558532,0.052,68202.0,68201.0,0.69844542]
[1721603558813,0.052,68202.0,68201.0,0.576675]
[1721603559446,0.052,68202.0,68201.0,0.43005]
[1721603559583,0.09405959,68202.0,68201.0,0.43005]
[1721603560854,0.09305959,68202.0,68201.0,0.43005]
[1721603561054,0.09205959,68202.0,68201.0,0.43005]
[1721603561263,0.051,68202.0,68201.0,0.36895]
[1721603561642,0.05,68202.0,68201.0,0.36895]
[1721603561846,0.051,68202.0,68201.0,0.36895]
[1721603562053,0.052,68202.0,68201.0,0.36895]
[1721603562211,0.09405959,68202.0,68201.0,0.36895]
[1721603562445,0.053,68202.0,68201.0,0.36895]
[1721603562644,0.09505959,68202.0,68201.0,0.36895]
[1721603562856,0.053,68202.0,68201.0,0.515575]
[1721603563268,0.053,68202.0,68201.0,0.36895]
[1721603563466,0.053,68202.0,68201.0,1.167875]
[1721603563467,0.003,68202.0,68201.0,1.167875]
[1721603563872,0.002,68202.0,68201.0,1.461125]
[1721603564080,0.04399591,68208.0,68207.0,0.580737]
[1721603564299,0.04399591,68208.0,68207.0,1.167192]
[1721603564718,0.05,68210.0,68209.0,0.439824]
[1721603564941,0.05,68210.0,68209.0,0.733044]
[1721603565143,0.05,68210.0,68209.0,0.56158398]
[1721603565350,0.23866559,68210.0,68209.0,0.29322]
[1721603565670,0.26166559,68210.0,68209.0,0.29322]
[1721603566041,0.26366559,68210.0,68209.0,0.29322]
[1721603567531,0.26466559,68210.0,68209.0,0.29322]
[1721603567738,0.26366559,68210.0,68209.0,0.29322]
[1721603567951,0.30665213,68210.0,68209.0,0.29322]
[1721603568243,0.59986413,68210.0,68209.0,0.29322]
[1721603568459,0.26366559,68210.0,68209.0,0.29322]
[1721603568686,0.30765392,68210.0,68209.0,0.29322]
[1721603568858,0.26266559,68210.0,68209.0,0.29322]
[1721603569058,0.30765378,68210.0,68209.0,0.29322]
[1721603569265,0.30665378,68210.0,68209.0,0.29322]
[1721603570029,1.18329769,68210.0,68209.0,0.29322]
[1721603570286,1.24221063,68210.0,68209.0,0.29322]
[1721603571162,1.20529179,68210.0,68209.0,0.29322]
[1721603571366,1.20629645,68210.0,68209.0,0.29322]
[1721603571542,0.76988445,68210.0,68209.0,0.29322]
[1721603571746,0.7038975,68210.0,68209.0,0.29322]
[1721603571999,0.74788768,68210.0,68209.0,0.29322]
[1721603572162,0.7028975,68210.0,68209.0,0.29322]
[1721603572408,0.7038975,68210.0,68209.0,0.29322]
[1721603572866,0.9961095,68210.0,68209.0,0.29322]
[1721603573071,1.02003686,68210.0,68209.0,0.29322]
[1721603573325,1.05695974,68210.0,68209.0,0.29322]
[1721603574195,1.05795974,68210.0,68209.0,0.29322]
[1721603574400,1.05795797,68210.0,68209.0,0.29322]
[1721603574605,1.10001756,68210.0,68209.0,0.29322]
[1721603574815,1.03403238,68210.0,68209.0,0.29322]
[1721603574999,1.10001761,68210.0,68209.0,0.29322]
[1721603575491,1.03403238,68210.0,68209.0,0.29322]
[1721603575646,0.74082038,68210.0,68209.0,0.29322]
[1721603578005,0.7038975,68210.0,68209.0,0.29322]
[1721603578210,0.30765529,68210.0,68209.0,0.29322]
[1721603578467,0.30665529,68210.0,68209.0,0.29322]
[1721603578639,0.30565529,68210.0,68209.0,0.29322]
[1721603578845,0.30665529,68210.0,68209.0,0.29322]
[1721603579239,0.26166559,68210.0,68209.0,0.29322]
[1721603579410,0.55587759,68210.0,68209.0,0.29322]
[1721603580212,0.59280012,68210.0,68209.0,0.29322]
[1721603580788,0.55487759,68210.0,68209.0,0.29322]
[1721603580927,0.59180008,68210.0,68209.0,0.29322]
[1721603581334,1.17883199,68210.0,68209.0,0.29322]
[1721603581536,1.56002283,68210.0,68209.0,0.29322]
[1721603581761,1.47204399,68210.0,68209.0,0.29322]
[1721603582611,1.47104399,68210.0,68209.0,0.29322]
[1721603582762,1.47004399,68210.0,68209.0,0.29322]
[1721603582961,1.4279844,68210.0,68209.0,0.29322]
[1721603583208,1.47004399,68210.0,68209.0,0.29322]
[1721603583346,1.59525044,68210.0,68209.0,0.29322]
[1721603583549,1.4852663,68210.0,68209.0,0.29322]
[1721603584159,1.4872663,68210.0,68209.0,0.29322]
[1721603584557,1.4852663,68210.0,68209.0,0.29322]
[1721603584730,1.3434663,68210.0,68209.0,0.29322]
[1721603584931,0.58802239,68210.0,68209.0,0.29322]
[1721603585314,0.14820439,68210.0,68209.0,0.29322]
[1721603585534,0.24298089,68210.0,68209.0,0.29322]
[1721603585892,0.38958689,68210.0,68209.0,0.29322]
[1721603586097,0.27958808,68210.0,68209.0,0.29322]
[1721603586212,0.74509659,68210.0,68209.0,0.29322]
[1721603586416,0.66623337,68210.0,68209.0,0.29322]
[1721603586633,1.11255414,68210.0,68209.0,0.29322]
[1721603586821,1.10955414,68210.0,68209.0,0.29322]
[1721603587028,1.13155414,68210.0,68209.0,0.29322]
[1721603587228,1.13455414,68210.0,68209.0,0.29322]
[1721603587635,1.13555414,68210.0,68209.0,0.29322]
[1721603587842,1.13255414,68210.0,68209.0,0.29322]
[1721603589416,1.13255439,68210.0,68209.0,0.29322]
[1721603590148,1.16330618,68210.0,68209.0,0.29322]
[1721603590349,1.13255439,68210.0,68209.0,0.29322]
[1721603591234,1.42576639,68210.0,68209.0,0.29322]
[1721603591695,1.57146639,68210.0,68209.0,0.29322]
[1721603592338,1.57146674,68210.0,68209.0,0.29322]
[1721603592565,1.57046674,68210.0,68209.0,0.29322]
[1721603592985,1.57846674,68210.0,68209.0,0.29322]
[1721603593327,1.58746674,68210.0,68209.0,0.29322]
[1721603593846,1.57846674,68210.0,68209.0,0.29322]
[1721603594248,1.58746674,68210.0,68209.0,0.29322]
[1721603594824,1.59697153,68210.0,68209.0,0.29322]
[1721603595337,1.58897153,68210.0,68209.0,0.29322]
[1721603595548,1.58897178,68210.0,68209.0,0.29322]
[1721603595887,1.59597178,68210.0,68209.0,0.29322]
[1721603598516,1.73380089,68210.0,68209.0,0.29322]
[1721603598682,1.59597192,68210.0,68209.0,0.29322]
[1721603598883,1.58683824,68210.0,68209.0,0.29322]
[1721603599221,1.93918392,68210.0,68209.0,0.29322]
[1721603599429,2.08918392,68210.0,68209.0,0.29322]
[1721603599851,2.23765116,68210.0,68209.0,0.28422]
[1721603600244,2.23765116,68210.0,68209.0,0.26522]
[1721603600448,2.08018392,68210.0,68209.0,0.26522]
[1721603600600,2.09418392,68210.0,68209.0,0.26522]
[1721603600982,2.07318392,68210.0,68209.0,0.26522]
[1721603601191,2.08718392,68210.0,68209.0,0.25046058]
[1721603601389,2.21892377,68210.0,68209.0,0.25046058]
[1721603601596,2.22014905,68210.0,68209.0,0.25046058]
[1721603601782,2.0731864,68210.0,68209.0,0.25138458]
[1721603601981,2.0871864,68210.0,68209.0,0.25138458]
[1721603603034,2.1011864,68210.0,68209.0,0.25138458]
[1721603603437,2.0871864,68210.0,68209.0,0.25138458]
[1721603604091,2.0731864,68210.0,68209.0,0.25138458]
[1721603604400,2.12039344,68210.0,68209.0,0.25138458]
[1721603604590,2.07716816,68210.0,68209.0,0.25138458]
[1721603604795,2.09239373,68210.0,68209.0,0.25138458]
[1721603604995,2.12039373,68210.0,68209.0,0.25138458]
[1721603605757,2.10118669,68210.0,68209.0,0.25138458]
[1721603607196,2.0091271,68210.0,68209.0,0.25138458]
[1721603607400,2.10118669,68210.0,68209.0,0.25138458]
[1721603607625,2.0091271,68210.0,68209.0,0.25138458]
[1721603607823,2.39439869,68210.0,68209.0,0.25138458]
[1721603608002,2.54136134,68210.0,68209.0,0.25138458]
[1721603609070,2.54136134,68210.0,68209.0,0.23729496]
[1721603609071,2.62938134,68210.0,68209.0,0.23729496]
[1721603609318,2.62938134,68210.0,68209.0,0.16973763]
[1721603609722,2.62938134,68210.0,68209.0,0.08527069]
[1721603609929,2.54136134,68210.0,68209.0,0.08527069]
[1721603610327,2.54136134,68210.0,68209.0,0.04736098]
[1721603610538,2.39439869,68210.0,68209.0,0.04736098]
[1721603610708,2.38526335,68210.0,68209.0,0.04736098]
[1721603610950,2.39439914,68210.0,68209.0,0.04736098]
[1721603611379,2.39439915,68210.0,68209.0,0.04736098]
[1721603612940,1.65536659,68202.0,68201.0,0.000924]
[1721603613140,2.06183502,68202.0,68201.0,0.000924]
[1721603613345,2.35508102,68202.0,68201.0,0.000924]
[1721603613543,2.4867859,68202.0,68201.0,0.000924]
[1721603613765,2.3459454,68202.0,68201.0,0.000924]
[1721603613966,2.50204522,68202.0,68201.0,0.000924]
[1721603614245,2.5020454,68202.0,68201.0,0.000924]
[1721603614681,2.51604553,68202.0,68201.0,0.000924]
[1721603614899,1.11861659,68189.0,68185.0,0.000924]
[1721603615095,1.47245899,68189.0,68185.0,0.000924]
[1721603615333,1.80964569,68189.0,68185.0,0.000924]
[1721603615512,1.85964569,68189.0,68185.0,0.000924]
[1721603616080,1.81576099,68189.0,68185.0,0.000924]
[1721603616280,1.80963831,68189.0,68185.0,0.000924]
[1721603616899,1.82063839,68189.0,68185.0,0.000924]
[1721603617320,1.87063839,68189.0,68185.0,0.000924]
[1721603617536,1.60097659,68186.0,68185.0,0.000924]
[1721603617751,2.366727,68186.0,68185.0,0.000924]
[1721603617989,2.0575959,68186.0,68185.0,0.000924]
[1721603618385,2.14532303,68186.0,68185.0,0.000924]
[1721603618591,2.19564335,68186.0,68185.0,0.000924]
[1721603619284,2.10791622,68186.0,68185.0,0.000924]
[1721603619860,2.10182484,68186.0,68185.0,0.000924]
[1721603620058,2.19562291,68186.0,68185.0,0.000924]
[1721603620285,2.07159744,68186.0,68185.0,0.000924]
[1721603620541,1.92329744,68186.0,68185.0,0.000924]
[1721603620737,2.08559744,68186.0,68185.0,0.000924]
[1721603621373,2.1513501,68186.0,68185.0,0.294244]
[1721603621927,2.29831275,68186.0,68185.0,0.294244]
[1721603622053,2.1513501,68186.0,68185.0,0.294244]
[1721603622254,2.08559744,68186.0,68185.0,0.294244]
[1721603623136,1.76229744,68186.0,68185.0,0.294244]
[1721603623317,1.53028244,68186.0,68185.0,0.294244]
[1721603623527,1.43075244,68186.0,68185.0,0.434244]
[1721603623747,1.51505244,68186.0,68185.0,0.434244]
[1721603624063,1.56496645,68186.0,68185.0,0.294244]
[1721603624384,1.52114429,68186.0,68185.0,0.294244]
[1721603624584,1.54414429,68186.0,68185.0,0.294244]
[1721603625184,2.12988145,68186.0,68185.0,0.294244]
[1721603625429,2.28598207,68186.0,68185.0,0.294244]
[1721603626299,2.28598029,68186.0,68185.0,0.294244]
[1721603626497,2.24216009,68186.0,68185.0,0.294244]
[1721603627125,2.30093009,68186.0,68185.0,0.294244]
[1721603627354,1.81065244,68186.0,68185.0,0.294244]
[1721603627933,2.10396744,68186.0,68185.0,0.294244]
[1721603628097,1.72755244,68186.0,68185.0,0.294244]
[1721603628643,1.52775244,68186.0,68185.0,0.294244]
[1721603628845,1.55328244,68186.0,68185.0,0.294244]
[1721603629058,1.54414434,68186.0,68185.0,0.294244]
[1721603629228,1.55328214,68186.0,68185.0,0.294244]
[1721603629453,1.55328215,68186.0,68185.0,0.294244]
[1721603630642,1.51122256,68186.0,68185.0,0.294244]
[1721603631058,1.55328215,68186.0,68185.0,0.294244]
[1721603631476,1.55328221,68186.0,68185.0,0.294244]
[1721603632639,1.55328244,68186.0,68185.0,0.294244]
[1721603633270,2.03439744,68186.0,68185.0,0.294244]
[1721603633446,2.23136009,68186.0,68185.0,0.294244]
[1721603636282,2.21736009,68186.0,68185.0,0.294244]
[1721603636481,2.20336009,68186.0,68185.0,0.294244]
[1721603636687,2.13306009,68186.0,68185.0,0.294244]
[1721603636887,2.23136009,68186.0,68185.0,0.294244]
[1721603637073,2.21736009,68186.0,68185.0,0.294244]
[1721603637648,2.27518205,68186.0,68185.0,0.294244]
[1721603637790,2.24718205,68186.0,68185.0,0.294244]
[1721603638014,2.27518205,68186.0,68185.0,0.294244]
[1721603638418,2.23136009,68186.0,68185.0,0.294244]
[1721603638650,2.59043112,68186.0,68185.0,0.28773605]
[1721603638847,2.52467569,68186.0,68185.0,0.28773605]
[1721603639496,2.52467569,68186.0,68185.0,0.25158605]
[1721603639744,2.52467569,68186.0,68184.0,0.00297263]
[1721603639745,1.73791459,68185.0,68184.0,0.00297263]
[1721603639971,2.20719869,68185.0,68184.0,0.00297263]
[1721603640412,1.51209359,68180.0,68177.0,0.009207]
[1721603640669,2.17093889,68180.0,68177.0,0.009207]
[1721603640874,1.21878059,68178.0,68177.0,0.009207]
[1721603641081,2.3062185,68178.0,68177.0,0.009207]
[1721603641290,1.21884059,68174.0,68171.0,0.004]
[1721603641507,2.48964984,68174.0,68171.0,0.004]
[1721603641715,2.59928871,68174.0,68171.0,0.004]
[1721603641944,2.48964984,68174.0,68171.0,0.004]
[1721603642179,2.59928871,68174.0,68171.0,0.004]
[1721603642392,2.57736551,68174.0,68171.0,0.004]
[1721603642510,2.48964984,68174.0,68171.0,0.004]
[1721603643852,2.21028384,68174.0,68171.0,0.004]
[1721603644085,2.07543101,68174.0,68171.0,0.004]
[1721603644289,2.16312883,68174.0,68171.0,0.004]
[1721603644534,2.14120893,68174.0,68171.0,0.004]
[1721603644743,2.15520893,68174.0,68171.0,0.004]
[1721603644973,2.08943101,68174.0,68171.0,0.004]
[1721603645208,2.23639366,68174.0,68171.0,0.004]
[1721603646395,2.30217297,68174.0,68171.0,0.004]
[1721603646852,1.87831032,68174.0,68171.0,0.004]
[1721603647137,1.88769087,68174.0,68171.0,0.004]
[1721603647377,1.91260917,68174.0,68171.0,0.004]
[1721603647619,1.90651455,68174.0,68171.0,0.004]
[1721603647840,1.91260784,68174.0,68171.0,0.004]
[1721603648285,1.60590721,68174.0,68171.0,0.004]
[1721603649223,1.59190721,68174.0,68173.0,0.302577]
[1721603649693,1.61490721,68174.0,68173.0,0.302577]
[1721603649941,1.62890721,68174.0,68173.0,0.302577]
[1721603650162,1.55703675,68174.0,68173.0,0.302577]
[1721603650434,1.62890745,68174.0,68173.0,0.302577]
[1721603651977,1.62890745,68174.0,68173.0,0.438577]
[1721603651978,0.13382273,68174.0,68173.0,0.438577]
[1721603652196,0.05,68182.0,68181.0,0.293336]
[1721603652403,0.05,68187.0,68186.0,0.0602]
[1721603652606,0.09205959,68187.0,68186.0,0.42932]
[1721603652752,0.6790455,68187.0,68186.0,0.42932]
[1721603653161,0.09205959,68187.0,68186.0,0.42932]
[1721603654390,0.09205959,68187.0,68186.0,0.575977]
[1721603654704,0.09305959,68187.0,68186.0,0.575977]
[1721603655971,0.09205959,68187.0,68186.0,0.575977]
[1721603656347,0.09205959,68187.0,68186.0,0.576977]
[1721603656550,0.05,68187.0,68186.0,0.576977]
[1721603656772,0.05,68187.0,68186.0,0.575977]
[1721603656979,0.09205959,68187.0,68186.0,0.580977]
[1721603657374,0.05,68187.0,68186.0,0.576977]
[1721603657554,0.05,68187.0,68186.0,0.579977]
[1721603657912,0.05,68187.0,68186.0,0.580977]
[1721603658817,0.09205959,68187.0,68186.0,0.43432]
[1721603659306,0.09205959,68187.0,68186.0,0.874292]
[1721603659512,0.05,68187.0,68186.0,0.580977]
[1721603659715,0.05,68187.0,68186.0,0.870292]
[1721603660245,0.05,68187.0,68186.0,0.875292]
[1721603661285,0.05,68187.0,68186.0,0.870292]
[1721603661684,0.05,68187.0,68186.0,0.875292]
[1721603663130,0.05,68187.0,68186.0,1.168607]
[1721603665622,0.05084,68187.0,68186.0,1.168607]
[1721603667245,0.09289959,68187.0,68186.0,0.875292]
[1721603667687,0.09289959,68187.0,68186.0,0.581977]
[1721603668060,0.09289959,68187.0,68186.0,0.43532]
[1721603668207,0.09289959,68187.0,68186.0,0.581977]
[1721603668637,0.3865745,68187.0,68186.0,0.43532]
[1721603668837,0.3865745,68187.0,68186.0,0.35952]
[1721603668838,0.4095745,68187.0,68186.0,0.35952]
[1721603672981,0.2629195,68187.0,68186.0,0.35952]
[1721603673341,0.05084,68187.0,68186.0,0.43942]
[1721603673539,0.05084,68187.0,68186.0,0.586077]
[1721603675201,0.05084,68187.0,68186.0,0.879392]
[1721603676366,0.09289959,68187.0,68186.0,0.879392]
[1721603676776,0.09289959,68187.0,68186.0,0.586077]
[1721603678475,0.6798855,68187.0,68186.0,0.29932]
[1721603678676,0.7028855,68187.0,68186.0,0.29932]
[1721603680714,0.4095745,68187.0,68186.0,0.29932]
[1721603680922,0.4095745,68187.0,68186.0,0.29432]
[1721603681123,0.2629195,68187.0,68186.0,0.29432]
[1721603681461,0.2629195,68187.0,68186.0,0.41812395]
[1721603681805,0.2629195,68187.0,68186.0,0.41912395]
[1721603682187,0.2629195,68187.0,68186.0,0.41512395]
[1721603682591,0.2629195,68187.0,68186.0,0.41712395]
[1721603683410,0.4095745,68187.0,68186.0,0.41712395]
[1721603683748,0.2629195,68187.0,68186.0,0.41712395]
[1721603684186,0.2629195,68187.0,68186.0,0.42112395]
[1721603684404,0.2629195,68187.0,68186.0,0.42112536]
[1721603684763,0.2629195,68187.0,68186.0,0.29932]
[1721603684986,0.2629195,68187.0,68186.0,0.42112536]
[1721603684987,0.4095745,68187.0,68186.0,0.42112536]
[1721603686568,0.7028855,68187.0,68186.0,0.42112536]
[1721603686810,0.4095745,68187.0,68186.0,0.42112536]
[1721603687473,0.7028855,68187.0,68186.0,0.42112588]
[1721603687597,0.4095745,68187.0,68186.0,0.42112588]
[1721603689404,0.4095745,68187.0,68186.0,0.42112618]
[1721603689952,0.7028855,68187.0,68186.0,0.42112618]
[1721603690383,0.95413691,68187.0,68186.0,0.42112618]
[1721603690587,0.00084,68187.0,68186.0,0.85944118]
[1721603690792,0.00084,68187.0,68186.0,1.29941208]
[1721603690962,0.00084,68187.0,68186.0,1.69272708]
[1721603691572,0.00084,68187.0,68186.0,1.69072708]
[1721603691793,0.00184,68187.0,68186.0,1.70172708]
[1721603691956,0.00184,68187.0,68186.0,1.69772708]
[1721603692269,0.00084,68187.0,68186.0,1.68672708]
[1721603692722,0.00184,68187.0,68186.0,1.88040727]
[1721603693305,0.00184,68187.0,68186.0,1.88990486]
[1721603693479,0.00284,68187.0,68186.0,1.90190486]
[1721603693703,0.00284,68187.0,68186.0,1.59741959]
[1721603693881,0.00284,68187.0,68186.0,1.89085291]
[1721603694093,0.00184,68187.0,68186.0,1.89085291]
[1721603694254,0.00184,68187.0,68186.0,1.89285291]
[1721603694876,0.00184,68187.0,68186.0,1.87885291]
[1721603695023,0.00284,68187.0,68186.0,1.89285291]
[1721603695235,0.00384,68187.0,68186.0,1.90685291]
[1721603696125,0.00384,68187.0,68186.0,1.93509292]
[1721603696335,0.00384,68187.0,68186.0,1.03756292]
[1721603696549,0.00384,68187.0,68186.0,0.58975033]
[1721603696550,0.05384,68187.0,68186.0,0.58975033]
[1721603696960,0.05384,68187.0,68186.0,0.44311565]
[1721603696961,0.3895745,68187.0,68186.0,0.44311565]
[1721603697162,0.2429195,68187.0,68186.0,0.44311565]
[1721603697377,0.2419195,68187.0,68186.0,0.42912322]
[1721603697577,0.2399195,68187.0,68186.0,0.41512322]
[1721603697782,0.2419195,68187.0,68186.0,0.43912322]
[1721603698214,0.2399195,68187.0,68186.0,0.41512322]
[1721603698360,0.2409195,68187.0,68186.0,0.42112322]
[1721603698569,0.2409195,68187.0,68186.0,0.42512322]
[1721603698783,0.33717916,68197.0,68186.0,0.42512322]
[1721603698784,0.04396759,68207.0,68200.0,1.612902]
[1721603698983,0.06595138,68209.0,68208.0,0.43983]
[1721603698984,0.04396759,68209.0,68208.0,0.43983]
[1721603699226,0.18173049,68221.0,68208.0,0.43983]
[1721603699227,0.05,68224.0,68221.0,0.146582]
[1721603699364,0.09205959,68224.0,68223.0,0.146578]
[1721603699568,0.05,68224.0,68223.0,0.732894]
[1721603699815,0.09205959,68224.0,68223.0,0.29316]
[1721603700297,0.2390795,68224.0,68223.0,0.29316]
[1721603700716,0.19701991,68224.0,68223.0,0.29316]
[1721603700944,0.19701991,68224.0,68223.0,0.439738]
[1721603701281,0.19701991,68224.0,68223.0,0.29816]
[1721603701498,0.19801991,68224.0,68223.0,0.30016]
[1721603701704,0.22001991,68224.0,68223.0,0.439738]
[1721603702040,0.22101991,68224.0,68223.0,0.30516]
[1721603702656,0.2630795,68224.0,68223.0,0.30516]
[1721603703300,0.19801991,68224.0,68223.0,0.451738]
[1721603703505,0.051,68224.0,68223.0,0.744894]
[1721603703910,0.05,68224.0,68223.0,1.09125]
[1721603704295,0.051,68224.0,68223.0,1.09825]
[1721603704650,0.05,68224.0,68223.0,1.08625]
[1721603704851,0.05,68224.0,68223.0,1.10425]
[1721603705060,0.051,68224.0,68223.0,1.10425]
[1721603706416,0.051,68224.0,68223.0,0.745894]
[1721603706417,0.09305959,68224.0,68223.0,0.745894]
[1721603706621,0.051,68224.0,68223.0,1.03905]
[1721603706820,0.052,68224.0,68223.0,1.343206]
[1721603707229,0.052,68224.0,68223.0,1.05005]
[1721603707428,0.051,68224.0,68223.0,1.03905]
[1721603707628,0.051,68224.0,68223.0,1.05105]
[1721603707888,0.051,68224.0,68223.0,1.03805]
[1721603708108,0.05,68226.0,68223.0,2.07692055]
[1721603708324,0.05,68226.0,68225.0,0.79482]
[1721603708548,0.00084,68232.0,68231.0,0.502181]
[1721603708773,0.00084,68232.0,68231.0,1.57672903]
[1721603709441,0.00084,68243.0,68236.0,0.00794041]
[1721603709653,0.00084,68243.0,68242.0,0.72400042]
[1721603709865,0.00084,68243.0,68242.0,2.08017338]
[1721603710291,0.00084,68243.0,68242.0,1.84210002]
[1721603710544,0.04289959,68243.0,68242.0,0.41475096]
[1721603710769,0.6295245,68243.0,68242.0,0.29307]
[1721603710981,0.9225945,68243.0,68242.0,0.29307]
[1721603711188,0.9455945,68243.0,68242.0,0.30707]
[1721603711595,1.2386645,68243.0,68242.0,0.30707]
[1721603711807,1.3794645,68243.0,68242.0,0.31707]
[1721603712418,1.0863945,68243.0,68242.0,0.30307]
[1721603713445,1.0863945,68243.0,68242.0,0.31607]
[1721603713850,1.0863945,68243.0,68242.0,0.30207]
[1721603714061,1.0863945,68243.0,68242.0,0.29707]
[1721603714478,1.0863945,68243.0,68242.0,0.29907]
[1721603714889,1.3794645,68243.0,68242.0,0.29907]
[1721603715243,1.0863945,68243.0,68242.0,0.29907]
[1721603716633,1.3794645,68243.0,68242.0,0.29907]
[1721603716969,0.10565959,68230.0,68229.0,0.04997261]
[1721603717176,1.9149465,68230.0,68229.0,0.04997261]
[1721603717376,0.04205959,68206.0,68205.0,0.07348942]
[1721603717599,0.04205959,68206.0,68202.0,0.44093655]
[1721603717600,0.04205959,68203.0,68202.0,0.44093655]
[1721603717965,0.04205959,68210.0,68205.0,0.29323]
[1721603718201,0.146611,68208.0,68205.0,0.29323]
[1721603718422,0.17001991,68209.0,68205.0,0.29323]
[1721603718423,0.14701991,68207.0,68205.0,0.29323]
[1721603718904,0.29363191,68207.0,68206.0,0.07348942]
[1721603719107,0.29363191,68207.0,68206.0,0.36671942]
[1721603719318,0.6289165,68207.0,68206.0,0.36671942]
[1721603719523,0.9451415,68207.0,68206.0,0.29323]
[1721603719730,0.17001991,68207.0,68206.0,0.29323]
[1721603719950,0.002,68207.0,68206.0,1.089002]
[1721603720180,0.002,68207.0,68206.0,1.382231]
[1721603720394,0.18863859,68223.0,68215.0,0.146594]
[1721603720599,0.18863859,68223.0,68207.0,0.293225]
[1721603720600,0.04205959,68223.0,68219.0,0.07348942]
[1721603720808,0.18864359,68220.0,68219.0,0.07348942]
[1721603721014,0.48181259,68220.0,68219.0,0.36665942]
[1721603721230,0.48181259,68220.0,68219.0,0.29317]
[1721603721435,0.77498159,68220.0,68219.0,0.29317]
[1721603722070,0.48181259,68220.0,68219.0,0.29317]
[1721603723262,0.77698159,68220.0,68219.0,0.29317]
[1721603723675,0.002,68220.0,68219.0,0.35417]
[1721603723889,0.002,68220.0,68219.0,0.793929]
[1721603724107,0.002,68220.0,68219.0,1.087102]
[1721603724538,0.002,68220.0,68219.0,0.793929]
[1721603724741,0.002,68220.0,68219.0,0.500756]
[1721603724963,0.04205959,68225.0,68219.0,0.35417]
[1721603725166,0.48181259,68220.0,68219.0,0.29317]
[1721603725370,0.9240015,68220.0,68219.0,0.29317]
[1721603725813,0.9450015,68220.0,68219.0,0.29317]
[1721603726003,0.90294191,68220.0,68219.0,0.30417]
[1721603726427,0.9450015,68220.0,68219.0,0.30417]
[1721603726632,0.9450015,68220.0,68219.0,0.29317]
[1721603726853,0.9470015,68220.0,68219.0,0.29317]
[1721603727469,0.9470015,68220.0,68219.0,0.30617]
[1721603727885,0.9470015,68220.0,68219.0,0.29317]
[1721603728118,1.2401705,68220.0,68219.0,0.29317]
[1721603728987,1.2381705,68220.0,68219.0,0.29317]
[1721603729468,1.2401705,68220.0,68219.0,0.29317]
[1721603730971,1.7442395,68220.0,68219.0,0.29317]
[1721603731384,1.7452395,68220.0,68219.0,0.29317]
[1721603732016,1.7432395,68220.0,68219.0,0.29317]
[1721603732661,1.7422395,68220.0,68219.0,0.29317]